[Event "Titled Tuesday Blitz April 25 Early 2023"]
[White "Shuvalov, Evgenij"]
[Black "Janaszak, Dawid"]
[WhiteFideId "4187237"]
[BlackFideId "1119206"]
[WhiteElo "2080"]
[BlackElo "2220"]
[Result "0-1"]
[Round "09"]
[TimeControl "180+2"]
[Date "2023.04.25"]
[WhiteClock "0:00:35"]
[BlackClock "0:00:06"]

1. d4 {[%clk 0:03:00]}  Nf6 {[%clk 0:02:55]} 2. c4 {[%clk 0:03:01]}  c5 {[%clk 0:02:51]} 3. Nf3 {[%clk 0:02:59]}  cxd4 {[%clk 0:02:47]} 4. Nxd4 {[%clk 0:03:00]}  e6 {[%clk 0:02:47]} 5. a3 {[%clk 0:02:57]}  d5 {[%clk 0:02:45]} 6. cxd5 {[%clk 0:02:53]}  exd5 {[%clk 0:02:46]} 7. Nc3 {[%clk 0:02:53]}  Nc6 {[%clk 0:02:46]} 8. Bg5 {[%clk 0:02:52]}  Bc5 {[%clk 0:02:44]} 9. e3 {[%clk 0:02:51]}  O-O {[%clk 0:02:41]} 10. Be2 {[%clk 0:02:51]}  h6 {[%clk 0:02:39]} 11. Bh4 {[%clk 0:02:51]}  Nxd4 {[%clk 0:02:34]} 12. exd4 {[%clk 0:02:50]}  Be7 {[%clk 0:02:34]} 13. O-O {[%clk 0:02:50]}  Be6 {[%clk 0:02:32]} 14. Bf3 {[%clk 0:02:47]}  Rc8 {[%clk 0:02:31]} 15. Re1 {[%clk 0:02:47]}  Qb6 {[%clk 0:02:25]} 16. Re2 {[%clk 0:02:22]}  Rfe8 {[%clk 0:01:51]} 17. Qa4 {[%clk 0:02:07]}  g5 {[%clk 0:01:38]} 18. Bg3 {[%clk 0:02:05]}  g4 {[%clk 0:01:38]} 19. Rxe6 {[%clk 0:02:00]}  fxe6 {[%clk 0:01:31]} 20. Be2 {[%clk 0:01:46]}  Qxb2 {[%clk 0:01:29]} 21. Rb1 {[%clk 0:01:46]}  Qxc3 {[%clk 0:01:27]} 22. Rxb7 {[%clk 0:01:46]}  Qc1+ {[%clk 0:01:23]} 23. Bf1 {[%clk 0:01:45]}  Ne4 {[%clk 0:01:08]} 24. Qa6 {[%clk 0:01:29]}  Rc6 {[%clk 0:00:55]} 25. Qb5 {[%clk 0:01:23]}  Nd2 {[%clk 0:00:52]} 26. Bf4 {[%clk 0:01:19]}  Qxf1+ {[%clk 0:00:47]} 27. Qxf1 {[%clk 0:01:19]}  Nxf1 {[%clk 0:00:48]} 28. Kxf1 {[%clk 0:01:19]}  Ra6 {[%clk 0:00:43]} 29. Bxh6 {[%clk 0:01:17]}  Rxa3 {[%clk 0:00:38]} 30. Be3 {[%clk 0:01:17]}  a5 {[%clk 0:00:35]} 31. Ra7 {[%clk 0:01:16]}  a4 {[%clk 0:00:35]} 32. g3 {[%clk 0:01:14]}  Ra1+ {[%clk 0:00:34]} 33. Kg2 {[%clk 0:01:14]}  a3 {[%clk 0:00:35]} 34. h3 {[%clk 0:01:13]}  gxh3+ {[%clk 0:00:34]} 35. Kxh3 {[%clk 0:01:14]}  Bf8 {[%clk 0:00:28]} 36. Kg4 {[%clk 0:01:12]}  Re7 {[%clk 0:00:29]} 37. Ra8 {[%clk 0:01:12]}  Rg7+ {[%clk 0:00:29]} 38. Kf3 {[%clk 0:01:10]}  Rf7+ {[%clk 0:00:29]} 39. Kg4 {[%clk 0:01:10]}  Rb1 {[%clk 0:00:23]} 40. Bf4 {[%clk 0:01:07]}  Rb2 {[%clk 0:00:21]} 41. f3 {[%clk 0:01:03]}  a2 {[%clk 0:00:19]} 42. Be5 {[%clk 0:01:00]}  Re2 {[%clk 0:00:17]} 43. f4 {[%clk 0:00:55]}  Kh7 {[%clk 0:00:17]} 44. Kf3 {[%clk 0:00:53]}  Rc2 {[%clk 0:00:16]} 45. g4 {[%clk 0:00:50]}  Bg7 {[%clk 0:00:16]} 46. Ke3 {[%clk 0:00:42]}  Bxe5 {[%clk 0:00:16]} 47. dxe5 {[%clk 0:00:43]}  Rb7 {[%clk 0:00:15]} 48. f5 {[%clk 0:00:43]}  exf5 {[%clk 0:00:14]} 49. gxf5 {[%clk 0:00:43]}  Rb1 {[%clk 0:00:13]} 50. Ra7+ {[%clk 0:00:42]}  Kh6 {[%clk 0:00:13]} 51. Kd4 {[%clk 0:00:40]}  a1=Q+ {[%clk 0:00:13]} 52. Rxa1 {[%clk 0:00:39]}  Rxa1 {[%clk 0:00:14]} 53. Kxd5 {[%clk 0:00:40]}  Rd2+ {[%clk 0:00:14]} 54. Ke6 {[%clk 0:00:39]}  Ra6+ {[%clk 0:00:14]} 55. Ke7 {[%clk 0:00:39]}  Rb2 {[%clk 0:00:14]} 56. e6 {[%clk 0:00:38]}  Rb7+ {[%clk 0:00:13]} 57. Kf6 {[%clk 0:00:39]}  Raa7 {[%clk 0:00:08]} 58. Ke5 {[%clk 0:00:38]}  Rb5+ {[%clk 0:00:08]} 59. Kf6 {[%clk 0:00:38]}  Raa5 {[%clk 0:00:08]} 60. e7 {[%clk 0:00:38]}  Rxf5+ {[%clk 0:00:08]} 61. Ke6 {[%clk 0:00:38]}  Rae5+ {[%clk 0:00:08]} 62. Kd6 {[%clk 0:00:37]}  Re1 {[%clk 0:00:07]} 63. Kd7 {[%clk 0:00:34]}  Rf7 {[%clk 0:00:07]} 64. Kd8 {[%clk 0:00:35]}  Rexe7 {[%clk 0:00:05]} 65. Kc8 {[%clk 0:00:35]}  Re8# {[%clk 0:00:06]} 0-1


[Site "https://www.chess.com"]

[Event "Titled Tuesday Blitz April 25 Early 2023"]
[White "Khamdamova, Afruza"]
[Black "Ashraf, Artin"]
[WhiteFideId "14210444"]
[BlackFideId "22514805"]
[WhiteElo "2210"]
[BlackElo "2188"]
[Result "0-1"]
[Round "09"]
[TimeControl "180+2"]
[Date "2023.04.25"]
[WhiteClock "0:00:00"]
[BlackClock "0:00:03"]

1. e4 {[%clk 0:02:56]}  e5 {[%clk 0:02:54]} 2. Nf3 {[%clk 0:02:55]}  Nc6 {[%clk 0:02:54]} 3. Bc4 {[%clk 0:02:52]}  Bc5 {[%clk 0:02:47]} 4. O-O {[%clk 0:02:50]}  Nf6 {[%clk 0:02:45]} 5. Nc3 {[%clk 0:02:43]}  O-O {[%clk 0:02:42]} 6. d3 {[%clk 0:02:42]}  h6 {[%clk 0:02:42]} 7. h3 {[%clk 0:02:32]}  a6 {[%clk 0:02:40]} 8. a3 {[%clk 0:02:30]}  d6 {[%clk 0:02:38]} 9. b4 {[%clk 0:02:28]}  Ba7 {[%clk 0:02:37]} 10. Nd5 {[%clk 0:02:27]}  Nxd5 {[%clk 0:02:26]} 11. Bxd5 {[%clk 0:02:24]}  Ne7 {[%clk 0:02:27]} 12. Bb3 {[%clk 0:02:21]}  Ng6 {[%clk 0:02:25]} 13. Be3 {[%clk 0:02:19]}  Qf6 {[%clk 0:02:23]} 14. c4 {[%clk 0:02:14]}  Nf4 {[%clk 0:01:57]} 15. Bxf4 {[%clk 0:02:11]}  Qxf4 {[%clk 0:01:53]} 16. Nh2 {[%clk 0:01:50]}  g6 {[%clk 0:01:37]} 17. Qf3 {[%clk 0:01:48]}  Qg5 {[%clk 0:01:36]} 18. Rac1 {[%clk 0:01:44]}  Be6 {[%clk 0:01:34]} 19. Kh1 {[%clk 0:01:35]}  a5 {[%clk 0:01:23]} 20. Ng4 {[%clk 0:01:25]}  h5 {[%clk 0:01:19]} 21. Ne3 {[%clk 0:01:25]}  axb4 {[%clk 0:01:16]} 22. axb4 {[%clk 0:01:25]}  c6 {[%clk 0:01:16]} 23. Rb1 {[%clk 0:01:08]}  f5 {[%clk 0:00:43]} 24. exf5 {[%clk 0:01:06]}  gxf5 {[%clk 0:00:42]} 25. c5 {[%clk 0:01:02]}  d5 {[%clk 0:00:40]} 26. Rfe1 {[%clk 0:00:55]}  Bb8 {[%clk 0:00:38]} 27. d4 {[%clk 0:00:48]}  e4 {[%clk 0:00:32]} 28. Qe2 {[%clk 0:00:49]}  f4 {[%clk 0:00:18]} 29. Nf1 {[%clk 0:00:49]}  f3 {[%clk 0:00:09]} 30. gxf3 {[%clk 0:00:40]}  Rxf3 {[%clk 0:00:07]} 31. Ng3 {[%clk 0:00:22]}  h4 {[%clk 0:00:07]} 32. Rg1 {[%clk 0:00:22]}  hxg3 {[%clk 0:00:05]} 33. fxg3 {[%clk 0:00:00]}  Bxg3 {[%clk 0:00:03]} 0-1


[Site "https://www.chess.com"]

[Event "Titled Tuesday Blitz April 25 Early 2023"]
[White "Jovic, Stanoje"]
[Black "Kvaloy, Aksel Bu"]
[WhiteFideId "905020"]
[BlackFideId "1528815"]
[WhiteElo "2236"]
[BlackElo "2208"]
[Result "0-1"]
[Round "09"]
[TimeControl "180+2"]
[Date "2023.04.25"]
[WhiteClock "0:00:18"]
[BlackClock "0:01:38"]

1. c4 {[%clk 0:03:00]}  e5 {[%clk 0:02:58]} 2. g3 {[%clk 0:03:01]}  Nc6 {[%clk 0:02:56]} 3. Bg2 {[%clk 0:03:01]}  Bc5 {[%clk 0:02:56]} 4. Nc3 {[%clk 0:02:58]}  d6 {[%clk 0:02:56]} 5. Nf3 {[%clk 0:02:56]}  a6 {[%clk 0:02:55]} 6. O-O {[%clk 0:02:56]}  h5 {[%clk 0:02:55]} 7. e3 {[%clk 0:02:56]}  Ba7 {[%clk 0:02:53]} 8. d4 {[%clk 0:02:56]}  Qe7 {[%clk 0:02:52]} 9. Nd5 {[%clk 0:02:55]}  Qd8 {[%clk 0:02:51]} 10. b4 {[%clk 0:02:54]}  h4 {[%clk 0:02:50]} 11. b5 {[%clk 0:02:50]}  axb5 {[%clk 0:02:41]} 12. cxb5 {[%clk 0:02:50]}  Nce7 {[%clk 0:02:39]} 13. dxe5 {[%clk 0:02:42]}  h3 {[%clk 0:02:35]} 14. Bh1 {[%clk 0:02:36]}  dxe5 {[%clk 0:02:33]} 15. Nxe5 {[%clk 0:02:27]}  Be6 {[%clk 0:02:33]} 16. e4 {[%clk 0:02:18]}  Nf6 {[%clk 0:02:23]} 17. Bb2 {[%clk 0:01:54]}  Nfxd5 {[%clk 0:02:18]} 18. exd5 {[%clk 0:01:54]}  Bxd5 {[%clk 0:02:19]} 19. Re1 {[%clk 0:01:35]}  Bxh1 {[%clk 0:02:16]} 20. Kxh1 {[%clk 0:01:34]}  O-O {[%clk 0:02:14]} 21. Nd7 {[%clk 0:01:27]}  Re8 {[%clk 0:02:09]} 22. Qg4 {[%clk 0:01:11]}  Ng6 {[%clk 0:02:07]} 23. Qxh3 {[%clk 0:01:05]}  Bxf2 {[%clk 0:02:04]} 24. Rf1 {[%clk 0:00:54]}  Re2 {[%clk 0:02:02]} 25. Bc3 {[%clk 0:00:26]}  Ra3 {[%clk 0:01:53]} 26. Bb4 {[%clk 0:00:22]}  Rd3 {[%clk 0:01:44]} 27. Nc5 {[%clk 0:00:18]}  Bxc5 {[%clk 0:01:38]} 0-1


[Site "https://www.chess.com"]

[Event "Titled Tuesday Blitz April 25 Early 2023"]
[White "Kubatko, Ivan"]
[Black "Golichenko, Ilija"]
[WhiteFideId "24111473"]
[BlackFideId "14117223"]
[WhiteElo "2285"]
[BlackElo "2339"]
[Result "1-0"]
[Round "09"]
[TimeControl "180+2"]
[Date "2023.04.25"]
[WhiteClock "0:00:04"]
[BlackClock "0:00:35"]

1. e4 {[%clk 0:03:00]}  Nf6 {[%clk 0:03:00]} 2. e5 {[%clk 0:02:58]}  Nd5 {[%clk 0:03:00]} 3. c4 {[%clk 0:02:56]}  Nb6 {[%clk 0:02:59]} 4. d4 {[%clk 0:02:56]}  d6 {[%clk 0:02:59]} 5. exd6 {[%clk 0:02:56]}  exd6 {[%clk 0:03:00]} 6. Nf3 {[%clk 0:02:48]}  Bg4 {[%clk 0:02:59]} 7. Nc3 {[%clk 0:02:47]}  Be7 {[%clk 0:02:57]} 8. Be3 {[%clk 0:02:44]}  Nc6 {[%clk 0:02:55]} 9. b3 {[%clk 0:02:42]}  O-O {[%clk 0:02:53]} 10. Be2 {[%clk 0:02:42]}  Bf6 {[%clk 0:02:52]} 11. O-O {[%clk 0:02:39]}  Re8 {[%clk 0:02:49]} 12. Rc1 {[%clk 0:02:35]}  d5 {[%clk 0:02:46]} 13. c5 {[%clk 0:02:12]}  Nc8 {[%clk 0:02:42]} 14. h3 {[%clk 0:02:09]}  Bh5 {[%clk 0:02:39]} 15. b4 {[%clk 0:01:46]}  Nxb4 {[%clk 0:02:26]} 16. Rb1 {[%clk 0:01:45]}  Na6 {[%clk 0:02:03]} 17. Rxb7 {[%clk 0:01:40]}  Nxc5 {[%clk 0:02:02]} 18. dxc5 {[%clk 0:01:28]}  Bxc3 {[%clk 0:02:00]} 19. g4 {[%clk 0:00:54]}  Bg6 {[%clk 0:01:59]} 20. Bb5 {[%clk 0:00:53]}  Re6 {[%clk 0:01:46]} 21. Ng5 {[%clk 0:00:38]}  Rxe3 {[%clk 0:01:43]} 22. fxe3 {[%clk 0:00:25]}  Qxg5 {[%clk 0:01:43]} 23. Qf3 {[%clk 0:00:25]}  Be5 {[%clk 0:01:32]} 24. Be8 {[%clk 0:00:12]}  Qe7 {[%clk 0:01:29]} 25. Bc6 {[%clk 0:00:10]}  Qxc5 {[%clk 0:01:28]} 26. Bxd5 {[%clk 0:00:09]}  Nd6 {[%clk 0:01:24]} 27. Rxc7 {[%clk 0:00:08]}  Qxc7 {[%clk 0:01:24]} 28. Bxa8 {[%clk 0:00:09]}  h6 {[%clk 0:01:17]} 29. Bd5 {[%clk 0:00:09]}  Qc2 {[%clk 0:01:16]} 30. Rf2 {[%clk 0:00:08]}  Qd3 {[%clk 0:01:14]} 31. h4 {[%clk 0:00:07]}  Kh7 {[%clk 0:01:07]} 32. h5 {[%clk 0:00:08]}  Be4 {[%clk 0:01:07]} 33. Bxe4+ {[%clk 0:00:07]}  Qxe4 {[%clk 0:01:08]} 34. Qxe4+ {[%clk 0:00:07]}  Nxe4 {[%clk 0:01:08]} 35. Rxf7 {[%clk 0:00:08]}  Nf6 {[%clk 0:01:02]} 36. Rxa7 {[%clk 0:00:07]}  Nxg4 {[%clk 0:01:02]} 37. a4 {[%clk 0:00:05]}  Nxe3 {[%clk 0:01:01]} 38. a5 {[%clk 0:00:06]}  Nf5 {[%clk 0:00:58]} 39. Kg2 {[%clk 0:00:04]}  Ng3 {[%clk 0:00:54]} 40. Re7 {[%clk 0:00:03]}  Bd6 {[%clk 0:00:51]} 41. Rd7 {[%clk 0:00:03]}  Nf5 {[%clk 0:00:46]} 42. a6 {[%clk 0:00:03]}  Bc5 {[%clk 0:00:45]} 43. Rc7 {[%clk 0:00:04]}  Bd4 {[%clk 0:00:42]} 44. Kh3 {[%clk 0:00:04]}  Nd6 {[%clk 0:00:39]} 45. Rd7 {[%clk 0:00:03]}  Nb5 {[%clk 0:00:37]} 46. Rxd4 {[%clk 0:00:04]}  Nxd4 {[%clk 0:00:37]} 47. a7 {[%clk 0:00:04]}  Ne6 {[%clk 0:00:36]} 48. a8=Q {[%clk 0:00:05]}  Nf4+ {[%clk 0:00:36]} 49. Kh4 {[%clk 0:00:05]}  Ne6 {[%clk 0:00:35]} 50. Qe4+ {[%clk 0:00:05]}  Kh8 {[%clk 0:00:34]} 51. Qxe6 {[%clk 0:00:06]}  g5+ {[%clk 0:00:35]} 52. Kg4 {[%clk 0:00:04]} 1-0


[Site "https://www.chess.com"]

[Event "Titled Tuesday Blitz April 25 Early 2023"]
[White "Martic, Ivan"]
[Black "Avazkhonov, Alikhon"]
[WhiteFideId "929301"]
[BlackFideId "14208504"]
[WhiteElo "2360"]
[BlackElo "1739"]
[Result "1-0"]
[Round "09"]
[TimeControl "180+2"]
[Date "2023.04.25"]
[WhiteClock "0:01:03"]
[BlackClock "0:00:04"]

1. d4 {[%clk 0:03:00]}  Nf6 {[%clk 0:02:58]} 2. Bg5 {[%clk 0:02:59]}  Ne4 {[%clk 0:02:54]} 3. Bf4 {[%clk 0:02:58]}  c5 {[%clk 0:02:54]} 4. f3 {[%clk 0:02:56]}  Qa5+ {[%clk 0:02:55]} 5. c3 {[%clk 0:02:53]}  Nf6 {[%clk 0:02:55]} 6. d5 {[%clk 0:02:53]}  e6 {[%clk 0:02:55]} 7. e4 {[%clk 0:02:52]}  exd5 {[%clk 0:02:55]} 8. exd5 {[%clk 0:02:47]}  d6 {[%clk 0:02:55]} 9. Na3 {[%clk 0:02:39]}  Be7 {[%clk 0:02:55]} 10. Nc4 {[%clk 0:02:29]}  Qc7 {[%clk 0:02:53]} 11. a4 {[%clk 0:02:28]}  O-O {[%clk 0:02:53]} 12. Ne2 {[%clk 0:02:16]}  Re8 {[%clk 0:02:53]} 13. g4 {[%clk 0:02:15]}  Bf8 {[%clk 0:02:34]} 14. Kf2 {[%clk 0:02:14]}  b6 {[%clk 0:02:32]} 15. Ng3 {[%clk 0:02:07]}  Nbd7 {[%clk 0:02:32]} 16. g5 {[%clk 0:02:02]}  Bb7 {[%clk 0:01:57]} 17. gxf6 {[%clk 0:01:56]}  Nxf6 {[%clk 0:01:58]} 18. Ne3 {[%clk 0:01:54]}  Rxe3 {[%clk 0:01:57]} 19. Bxe3 {[%clk 0:01:52]}  Nxd5 {[%clk 0:01:57]} 20. Bc4 {[%clk 0:01:44]}  Nxe3 {[%clk 0:01:56]} 21. Kxe3 {[%clk 0:01:45]}  d5 {[%clk 0:01:56]} 22. Bxd5 {[%clk 0:01:34]}  Rd8 {[%clk 0:01:46]} 23. c4 {[%clk 0:01:33]}  Qe5+ {[%clk 0:01:28]} 24. Kf2 {[%clk 0:01:32]}  Bxd5 {[%clk 0:01:21]} 25. cxd5 {[%clk 0:01:33]}  Rxd5 {[%clk 0:01:22]} 26. Qe2 {[%clk 0:01:31]}  Qd4+ {[%clk 0:01:21]} 27. Kg2 {[%clk 0:01:29]}  Qf4 {[%clk 0:01:14]} 28. Rad1 {[%clk 0:01:23]}  Re5 {[%clk 0:01:15]} 29. Qd2 {[%clk 0:01:21]}  Qf6 {[%clk 0:00:28]} 30. Rhe1 {[%clk 0:01:13]}  h5 {[%clk 0:00:06]} 31. Rxe5 {[%clk 0:01:07]}  Qxe5 {[%clk 0:00:07]} 32. Re1 {[%clk 0:01:07]}  Qf6 {[%clk 0:00:04]} 33. Nxh5 {[%clk 0:01:03]} 1-0


[Site "https://www.chess.com"]

[Event "Titled Tuesday Blitz April 25 Early 2023"]
[White "Lund, Gunnar"]
[Black "Vivas Zamora, Fabian Ernesto"]
[WhiteFideId "1520814"]
[BlackFideId "3902480"]
[WhiteElo "2233"]
[BlackElo "2262"]
[Result "0-1"]
[Round "09"]
[TimeControl "180+2"]
[Date "2023.04.25"]
[WhiteClock "0:00:11"]
[BlackClock "0:00:09"]

1. f3 {[%clk 0:02:57]}  e5 {[%clk 0:02:58]} 2. Kf2 {[%clk 0:02:58]}  d5 {[%clk 0:02:59]} 3. e3 {[%clk 0:02:58]}  f5 {[%clk 0:02:54]} 4. d4 {[%clk 0:02:58]}  e4 {[%clk 0:02:47]} 5. f4 {[%clk 0:02:58]}  Nf6 {[%clk 0:02:43]} 6. Be2 {[%clk 0:02:58]}  h5 {[%clk 0:02:34]} 7. h4 {[%clk 0:02:55]}  Nc6 {[%clk 0:01:57]} 8. g3 {[%clk 0:02:45]}  Ng4+ {[%clk 0:01:51]} 9. Bxg4 {[%clk 0:02:45]}  fxg4 {[%clk 0:01:40]} 10. b3 {[%clk 0:02:44]}  Ne7 {[%clk 0:01:40]} 11. Ba3 {[%clk 0:02:44]}  Nf5 {[%clk 0:01:38]} 12. Bxf8 {[%clk 0:02:44]}  Rxf8 {[%clk 0:01:38]} 13. Ne2 {[%clk 0:02:39]}  Be6 {[%clk 0:01:32]} 14. Qd2 {[%clk 0:02:37]}  Qd6 {[%clk 0:01:31]} 15. Rc1 {[%clk 0:02:34]}  c6 {[%clk 0:01:03]} 16. c4 {[%clk 0:02:33]}  Kf7 {[%clk 0:00:56]} 17. cxd5 {[%clk 0:02:32]}  cxd5 {[%clk 0:00:57]} 18. Nbc3 {[%clk 0:02:32]}  Rfc8 {[%clk 0:00:52]} 19. Rc2 {[%clk 0:02:19]}  Rc6 {[%clk 0:00:46]} 20. Rac1 {[%clk 0:02:17]}  Rac8 {[%clk 0:00:44]} 21. Na4 {[%clk 0:02:17]}  b6 {[%clk 0:00:27]} 22. Rc3 {[%clk 0:02:12]}  Bd7 {[%clk 0:00:22]} 23. Rxc6 {[%clk 0:02:03]}  Rxc6 {[%clk 0:00:22]} 24. Rxc6 {[%clk 0:02:03]}  Bxc6 {[%clk 0:00:22]} 25. Nac3 {[%clk 0:01:54]}  Qb4 {[%clk 0:00:20]} 26. Nb1 {[%clk 0:01:53]}  Qxd2 {[%clk 0:00:18]} 27. Nxd2 {[%clk 0:01:52]}  Ke6 {[%clk 0:00:19]} 28. Nc3 {[%clk 0:01:50]}  Kd6 {[%clk 0:00:18]} 29. b4 {[%clk 0:01:43]}  a5 {[%clk 0:00:16]} 30. bxa5 {[%clk 0:01:43]}  bxa5 {[%clk 0:00:17]} 31. Nb3 {[%clk 0:01:44]}  a4 {[%clk 0:00:17]} 32. Nc5 {[%clk 0:01:42]}  a3 {[%clk 0:00:07]} 33. Nb1 {[%clk 0:01:42]}  Bb5 {[%clk 0:00:07]} 34. Nxa3 {[%clk 0:01:40]}  Bc4 {[%clk 0:00:03]} 35. Nxe4+ {[%clk 0:01:38]}  dxe4 {[%clk 0:00:01]} 36. Nxc4+ {[%clk 0:01:37]}  Kd5 {[%clk 0:00:02]} 37. Nb6+ {[%clk 0:01:33]}  Kc6 {[%clk 0:00:02]} 38. Nc4 {[%clk 0:01:32]}  Kd5 {[%clk 0:00:02]} 39. Nd2 {[%clk 0:01:29]}  Nd6 {[%clk 0:00:02]} 40. a4 {[%clk 0:01:28]}  Nb7 {[%clk 0:00:03]} 41. Nb3 {[%clk 0:01:20]}  Kc4 {[%clk 0:00:02]} 42. Nc5 {[%clk 0:01:10]}  Nd6 {[%clk 0:00:02]} 43. a5 {[%clk 0:01:08]}  Kb5 {[%clk 0:00:02]} 44. a6 {[%clk 0:01:08]}  Kb6 {[%clk 0:00:03]} 45. Ke2 {[%clk 0:01:06]}  g6 {[%clk 0:00:03]} 46. Ne6 {[%clk 0:00:54]}  Nf5 {[%clk 0:00:02]} 47. Kf2 {[%clk 0:00:52]}  Kxa6 {[%clk 0:00:03]} 48. Nc5+ {[%clk 0:00:48]}  Kb5 {[%clk 0:00:03]} 49. Nxe4 {[%clk 0:00:49]}  Kc4 {[%clk 0:00:04]} 50. Nc5 {[%clk 0:00:46]}  Kc3 {[%clk 0:00:03]} 51. d5 {[%clk 0:00:24]}  Kc4 {[%clk 0:00:02]} 52. Ne4 {[%clk 0:00:12]}  Kxd5 {[%clk 0:00:03]} 53. Nd2 {[%clk 0:00:11]}  Ke6 {[%clk 0:00:03]} 54. Nf1 {[%clk 0:00:11]}  Nd6 {[%clk 0:00:03]} 55. Ke2 {[%clk 0:00:11]}  Ne4 {[%clk 0:00:03]} 56. Kd3 {[%clk 0:00:11]}  Kd5 {[%clk 0:00:03]} 57. Kc2 {[%clk 0:00:09]}  Kc4 {[%clk 0:00:03]} 58. Nd2+ {[%clk 0:00:09]}  Kd5 {[%clk 0:00:04]} 59. Nxe4 {[%clk 0:00:07]}  Kxe4 {[%clk 0:00:05]} 60. Kd2 {[%clk 0:00:08]}  Kf3 {[%clk 0:00:05]} 61. Kd3 {[%clk 0:00:06]}  Kxg3 {[%clk 0:00:06]} 62. e4 {[%clk 0:00:07]}  Kxf4 {[%clk 0:00:06]} 63. Kd4 {[%clk 0:00:07]}  g3 {[%clk 0:00:07]} 64. e5 {[%clk 0:00:08]}  g2 {[%clk 0:00:08]} 65. e6 {[%clk 0:00:09]}  g1=Q+ {[%clk 0:00:09]} 66. Kd5 {[%clk 0:00:10]}  Qb6 {[%clk 0:00:09]} 67. e7 {[%clk 0:00:11]}  Qb5+ {[%clk 0:00:09]} 68. Ke6 {[%clk 0:00:11]}  Qe8 {[%clk 0:00:09]} 0-1


[Site "https://www.chess.com"]

[Event "Titled Tuesday Blitz April 25 Early 2023"]
[White "Pauly, Carlo"]
[Black "Koutsin, Sergey"]
[WhiteFideId "24673269"]
[BlackFideId "14101483"]
[WhiteElo "2254"]
[BlackElo "2381"]
[Result "1-0"]
[Round "09"]
[TimeControl "180+2"]
[Date "2023.04.25"]
[WhiteClock "0:00:27"]
[BlackClock "0:00:14"]

1. d4 {[%clk 0:03:00]}  e6 {[%clk 0:02:59]} 2. c4 {[%clk 0:03:00]}  Nf6 {[%clk 0:02:59]} 3. Nc3 {[%clk 0:03:00]}  Bb4 {[%clk 0:02:59]} 4. Qc2 {[%clk 0:02:59]}  c5 {[%clk 0:02:59]} 5. dxc5 {[%clk 0:02:59]}  O-O {[%clk 0:03:00]} 6. Nf3 {[%clk 0:02:57]}  Bxc5 {[%clk 0:02:59]} 7. Bf4 {[%clk 0:02:56]}  a6 {[%clk 0:02:58]} 8. e3 {[%clk 0:02:56]}  Be7 {[%clk 0:02:58]} 9. Be2 {[%clk 0:02:54]}  d6 {[%clk 0:02:59]} 10. O-O {[%clk 0:02:53]}  Qc7 {[%clk 0:02:59]} 11. Rfd1 {[%clk 0:02:52]}  Nbd7 {[%clk 0:02:58]} 12. Rd2 {[%clk 0:02:51]}  h6 {[%clk 0:02:43]} 13. Rad1 {[%clk 0:02:48]}  e5 {[%clk 0:02:30]} 14. Bg3 {[%clk 0:02:48]}  b6 {[%clk 0:02:30]} 15. Nh4 {[%clk 0:02:40]}  Nc5 {[%clk 0:01:52]} 16. Nf5 {[%clk 0:02:33]}  Bxf5 {[%clk 0:01:50]} 17. Qxf5 {[%clk 0:02:34]}  g6 {[%clk 0:01:40]} 18. Qh3 {[%clk 0:02:21]}  Kg7 {[%clk 0:01:36]} 19. Bh4 {[%clk 0:02:13]}  g5 {[%clk 0:01:32]} 20. Bg3 {[%clk 0:02:12]}  Nce4 {[%clk 0:01:30]} 21. Nd5 {[%clk 0:01:52]}  Nxd5 {[%clk 0:01:28]} 22. Rxd5 {[%clk 0:01:51]}  f5 {[%clk 0:00:50]} 23. Bd3 {[%clk 0:01:30]}  Nxg3 {[%clk 0:00:27]} 24. hxg3 {[%clk 0:01:26]}  e4 {[%clk 0:00:26]} 25. Bb1 {[%clk 0:01:06]}  Qc8 {[%clk 0:00:25]} 26. g4 {[%clk 0:00:55]}  fxg4 {[%clk 0:00:20]} 27. Qg3 {[%clk 0:00:51]}  Qe6 {[%clk 0:00:20]} 28. R1d4 {[%clk 0:00:50]}  Rf6 {[%clk 0:00:13]} 29. Rxe4 {[%clk 0:00:47]}  Qf7 {[%clk 0:00:14]} 30. Rxg4 {[%clk 0:00:37]}  Rf8 {[%clk 0:00:14]} 31. Rdxg5+ {[%clk 0:00:26]}  hxg5 {[%clk 0:00:14]} 32. Rxg5+ {[%clk 0:00:27]} 1-0


[Site "https://www.chess.com"]

[Event "Titled Tuesday Blitz April 25 Early 2023"]
[White "Topalov, Aleksandar"]
[Black "Rodchenkov, Sergey D."]
[WhiteFideId "925659"]
[BlackFideId "4168712"]
[WhiteElo "2151"]
[BlackElo "2277"]
[Result "0-1"]
[Round "09"]
[TimeControl "180+2"]
[Date "2023.04.25"]
[WhiteClock "0:00:11"]
[BlackClock "0:00:08"]

1. b3 {[%clk 0:03:00]}  d5 {[%clk 0:02:59]} 2. Bb2 {[%clk 0:02:59]}  Nf6 {[%clk 0:03:00]} 3. Nf3 {[%clk 0:02:59]}  Bg4 {[%clk 0:03:00]} 4. e3 {[%clk 0:02:56]}  Nbd7 {[%clk 0:03:00]} 5. Be2 {[%clk 0:02:56]}  Bxf3 {[%clk 0:02:54]} 6. Bxf3 {[%clk 0:02:55]}  e5 {[%clk 0:02:55]} 7. d3 {[%clk 0:02:56]}  Bb4+ {[%clk 0:02:53]} 8. Nd2 {[%clk 0:02:55]}  O-O {[%clk 0:02:52]} 9. a3 {[%clk 0:02:55]}  Bd6 {[%clk 0:02:52]} 10. O-O {[%clk 0:02:54]}  c6 {[%clk 0:02:52]} 11. c4 {[%clk 0:02:53]}  Qe7 {[%clk 0:02:49]} 12. cxd5 {[%clk 0:02:53]}  cxd5 {[%clk 0:02:49]} 13. Be2 {[%clk 0:02:46]}  a5 {[%clk 0:02:43]} 14. Nf3 {[%clk 0:02:42]}  Rfd8 {[%clk 0:02:36]} 15. Qd2 {[%clk 0:02:38]}  Nf8 {[%clk 0:02:29]} 16. Rfc1 {[%clk 0:02:36]}  Ng6 {[%clk 0:02:28]} 17. Rc2 {[%clk 0:02:27]}  Re8 {[%clk 0:02:12]} 18. Bc3 {[%clk 0:02:19]}  e4 {[%clk 0:02:08]} 19. Nd4 {[%clk 0:02:18]}  Qe5 {[%clk 0:01:58]} 20. g3 {[%clk 0:02:18]}  Qg5 {[%clk 0:01:58]} 21. Nb5 {[%clk 0:02:13]}  Be5 {[%clk 0:01:33]} 22. d4 {[%clk 0:02:00]}  Bb8 {[%clk 0:01:31]} 23. Bxa5 {[%clk 0:01:52]}  Rxa5 {[%clk 0:01:18]} 24. Qxa5 {[%clk 0:01:51]}  h5 {[%clk 0:01:18]} 25. Qe1 {[%clk 0:01:44]}  h4 {[%clk 0:01:13]} 26. Rac1 {[%clk 0:01:41]}  Qf5 {[%clk 0:01:04]} 27. Qf1 {[%clk 0:01:15]}  Ng4 {[%clk 0:00:53]} 28. Bxg4 {[%clk 0:01:05]}  Qxg4 {[%clk 0:00:54]} 29. Qd1 {[%clk 0:00:59]}  Qh3 {[%clk 0:00:51]} 30. Qh5 {[%clk 0:00:57]}  Rf8 {[%clk 0:00:30]} 31. Nc7 {[%clk 0:00:52]}  Qd7 {[%clk 0:00:20]} 32. Nxd5 {[%clk 0:00:36]}  h3 {[%clk 0:00:20]} 33. Nf4 {[%clk 0:00:28]}  Bxf4 {[%clk 0:00:16]} 34. gxf4 {[%clk 0:00:27]}  Ne7 {[%clk 0:00:07]} 35. Rc7 {[%clk 0:00:23]}  Qe6 {[%clk 0:00:08]} 36. R1c5 {[%clk 0:00:18]}  g6 {[%clk 0:00:05]} 37. Qg5 {[%clk 0:00:16]}  Nf5 {[%clk 0:00:02]} 38. Rxf5 {[%clk 0:00:15]}  Qxf5 {[%clk 0:00:03]} 39. Qxf5 {[%clk 0:00:15]}  gxf5 {[%clk 0:00:04]} 40. Rxb7 {[%clk 0:00:15]}  Kg7 {[%clk 0:00:04]} 41. Kf1 {[%clk 0:00:15]}  Rc8 {[%clk 0:00:04]} 42. b4 {[%clk 0:00:13]}  Rc1+ {[%clk 0:00:05]} 43. Ke2 {[%clk 0:00:12]}  Rc2+ {[%clk 0:00:05]} 44. Ke1 {[%clk 0:00:12]}  Ra2 {[%clk 0:00:06]} 45. Ra7 {[%clk 0:00:11]}  Ra1+ {[%clk 0:00:06]} 46. Kd2 {[%clk 0:00:11]}  Ra2+ {[%clk 0:00:06]} 47. Kc3 {[%clk 0:00:11]}  Rxf2 {[%clk 0:00:06]} 48. b5 {[%clk 0:00:11]}  Rxh2 {[%clk 0:00:05]} 49. b6 {[%clk 0:00:12]}  Rh1 {[%clk 0:00:06]} 50. Kc2 {[%clk 0:00:10]}  Rh2+ {[%clk 0:00:06]} 51. Kc3 {[%clk 0:00:10]}  Rh1 {[%clk 0:00:06]} 52. Ra4 {[%clk 0:00:10]}  h2 {[%clk 0:00:06]} 53. b7 {[%clk 0:00:11]}  Rc1+ {[%clk 0:00:06]} 54. Kb2 {[%clk 0:00:10]}  h1=Q {[%clk 0:00:07]} 55. b8=Q {[%clk 0:00:10]}  Rb1+ {[%clk 0:00:07]} 56. Kc3 {[%clk 0:00:11]}  Rxb8 {[%clk 0:00:08]} 0-1


[Site "https://www.chess.com"]